bitfinex/quotes_ETHUSD_20250110
["timestamp","ask_amount","ask_price","bid_price","bid_amount"]
[1736506826034,0.3391097,3325.2,3325.0,0.231]
[1736506826215,0.3391097,3325.2,3324.0,10.0]
[1736506826216,3.00799,3324.5,3324.0,10.0]
[1736506826421,3.00769,3324.8,3324.1,0.231]
[1736506826714,3.00812,3324.4,3324.2,0.231]
[1736506826977,3.00815,3324.3,3324.2,0.231]
[1736506827277,3.00833,3324.1,3324.0,10.0]
[1736506827569,3.00833,3324.1,3324.0,10.231]
[1736506827772,3.384783,3324.1,3324.0,10.231]
[1736506827915,3.384783,3324.1,3324.0,10.0]
[1736506828115,3.384783,3324.1,3324.0,10.231]
[1736506828392,8.59983208,3324.1,3324.0,5.48737]
[1736506828595,9.91773208,3324.1,3324.0,2.47895]
[1736506828874,9.92523208,3324.1,3324.0,2.47895]
[1736506829315,6.01646,3323.4,3323.3,0.227]
[1736506829513,6.995403,3323.4,3323.3,0.227]
[1736506833233,3.00896,3323.4,3323.3,0.227]
[1736506833943,3.00833,3324.2,3323.3,0.227]
[1736506834107,3.00857,3323.9,3323.3,0.227]
[1736506834470,3.00857,3323.9,3323.4,0.03017218]
[1736506834827,3.00808,3324.4,3323.6,2.20754908]
[1736506835242,3.78818,3324.6,3323.7,0.8584568]
[1736506835410,0.378818,3324.6,3323.7,0.82837387]
[1736506835610,0.015,3324.8,3323.7,0.03007387]
[1736506835833,3.00854,3323.9,3323.3,1.0048]
[1736506836038,3.00854,3323.9,3323.8,0.0300411]
[1736506836354,0.8311,3324.2,3323.4,0.227]
[1736506836550,3.00843,3324.0,3323.4,0.227]
[1736506836751,3.00843,3324.0,3323.5,0.03013941]
[1736506837559,3.00852,3323.9,3323.5,0.03013941]
[1736506839195,3.00877,3323.7,3323.5,0.03013941]
[1736506839400,0.300852,3323.9,3323.5,0.03013941]
[1736506839623,3.00878,3323.6,3323.4,0.227]
[1736506840518,3.00908,3323.3,3322.9,0.7983]
[1736506840727,3.00915,3323.2,3323.0,0.227]
[1736506841063,3.310065,3323.2,3323.1,0.02968783]
[1736506841375,3.310065,3323.2,3323.0,0.227]
[1736506841376,3.00923,3323.1,3323.0,0.227]
[1736506842210,0.300915,3323.2,3322.6,0.7951]
[1736506842211,3.00942,3322.9,3322.6,0.7951]
[1736506842367,3.00942,3322.9,3322.7,0.227]
[1736506842568,3.00951,3322.8,3322.2,0.7951]
[1736506842894,0.300942,3322.9,3322.3,0.227]
[1736506843063,0.300915,3323.2,3322.3,0.227]
[1736506843064,3.0096,3322.7,3322.3,0.227]
[1736506843267,3.00934,3323.0,3322.3,0.227]
[1736506843468,3.300915,3323.2,3322.3,0.227]
[1736506843668,3.00963,3322.7,3322.3,0.227]
[1736506844069,3.00972,3322.6,3322.3,0.227]
[1736506844814,3.00972,3322.6,3322.4,0.227]
[1736506844815,0.300972,3322.6,3322.4,0.227]
[1736506844982,3.83488,3322.5,3322.4,0.227]
[1736506845185,0.8251,3322.5,3321.6,4.217]
[1736506845388,3.01008,3322.2,3321.7,0.227]
[1736506845588,3.01008,3322.2,3321.6,4.217]
[1736506845922,3.01015,3322.1,3321.7,0.227]
[1736506846068,3.01023,3322.0,3321.7,0.227]
[1736506846395,3.01023,3322.0,3321.6,4.217]
[1736506846396,3.01031,3322.0,3321.8,0.227]
[1736506846579,0.5575,3322.4,3321.8,0.227]
[1736506846782,3.01008,3322.2,3321.8,0.227]
[1736506848003,3.01032,3321.9,3321.8,0.227]
[1736506849031,3.01765,3322.1,3321.8,0.227]
[1736506850017,3.0,3322.2,3321.8,0.227]
[1736506850523,3.0,3322.2,3321.9,0.0301618]
[1736506850724,3.01005,3322.2,3321.9,0.0301618]
[1736506850929,3.01005,3322.2,3321.8,0.227]
[1736506851297,3.01005,3322.2,3321.9,0.0301618]
[1736506851499,3.311055,3322.2,3321.8,0.227]
[1736506851848,3.01005,3322.2,3321.8,0.227]
[1736506851994,0.8251,3322.5,3321.8,0.227]
[1736506851995,3.01014,3322.1,3321.8,0.227]
[1736506852453,3.01032,3321.9,3321.8,0.227]
[1736506853150,3.01746,3322.3,3321.6,4.217]
[1736506853151,3.7987,3321.7,3321.6,4.217]
[1736506853311,4.17857,3321.7,3321.6,4.444]
[1736506853513,4.18607,3321.7,3321.6,4.444]
[1736506854049,0.37987,3321.7,3321.6,4.444]
[1736506854247,0.7882,3322.0,3321.6,4.47585601]
[1736506854460,3.01035,3321.9,3321.6,4.47585601]
[1736506855305,0.7882,3322.0,3321.6,4.47585601]
[1736506855536,3.0105,3321.7,3321.6,4.47585601]
[1736506855714,3.00983,3322.5,3321.6,4.24885601]
[1736506855921,3.0103,3322.0,3321.6,4.47585601]
[1736506856235,0.0075,3322.1,3321.6,4.47585601]
[1736506856416,3.01044,3321.8,3321.6,4.47585601]
[1736506856621,3.01044,3321.8,3321.6,4.444]
[1736506856970,0.0075,3321.9,3321.7,0.0318232]
[1736506857121,3.0097,3322.6,3321.7,0.0318232]
[1736506857448,3.00949,3322.9,3321.8,0.7882]
[1736506857647,6.00951,3322.8,3321.8,0.82007568]
[1736506857818,0.0075,3322.7,3321.8,0.82007568]
[1736506858149,0.7646,3323.1,3321.9,2.20754908]
[1736506858330,3.7734,3323.6,3322.5,0.7882]
[1736506858537,3.0,3323.4,3322.6,0.226]
[1736506858753,3.0,3323.4,3322.6,0.25740483]
[1736506858936,3.01646,3323.4,3322.6,0.25740483]
[1736506859120,3.01646,3323.4,3322.6,0.03140483]
[1736506859318,3.0,3323.5,3322.7,0.226]
[1736506859539,0.59809491,3323.6,3322.7,0.226]
[1736506859745,3.60689491,3323.6,3322.8,0.03132504]
[1736506859906,0.36068949,3323.5,3322.8,0.03132504]
[1736506860549,3.00838,3324.1,3322.8,0.03132504]
[1736506860550,0.7659,3324.4,3323.0,0.7983]
[1736506860760,3.00826,3324.2,3323.1,3.00923]
[1736506861059,0.0075,3324.1,3323.1,3.04045669]
[1736506861267,3.77397,3324.4,3323.2,0.03009054]
[1736506861415,0.377397,3324.4,3323.4,3.00893]
[1736506861615,3.385477,3324.4,3323.4,3.00893]
[1736506861842,3.385477,3324.4,3323.5,0.03071671]
[1736506862059,3.385477,3324.4,3323.6,0.226]
[1736506862272,0.3385477,3324.3,3323.6,0.25668394]
[1736506863326,3.0075,3324.6,3323.6,0.25668394]
[1736506864259,0.7745,3324.7,3323.7,3.00863]
[1736506864456,2.20754908,3325.1,3323.9,0.7983]
[1736506864457,3.00772,3324.8,3323.9,0.7983]
[1736506864608,3.0,3324.7,3323.9,0.7983]
[1736506864813,3.0,3324.7,3324.0,0.03113746]
[1736506865008,0.600772,3324.6,3324.0,0.03113746]
[1736506865456,3.01556,3324.5,3324.0,0.03113746]
[1736506865660,0.0075,3324.5,3323.6,1.0243]
[1736506865823,3.0075,3324.5,3324.1,0.03110235]
[1736506866023,3.0075,3324.5,3323.6,1.0243]
[1736506866024,0.0075,3324.8,3323.6,1.0243]
[1736506866360,3.0075,3324.5,3324.2,0.0289961]
[1736506866559,0.601539,3324.4,3324.3,0.226]
[1736506866932,0.55,3324.7,3324.3,0.226]
[1736506866933,0.0075,3324.6,3324.3,0.226]
[1736506867857,0.7935,3325.1,3324.3,0.226]
[1736506868063,0.565,3324.9,3324.3,0.226]
[1736506868262,3.0075,3324.7,3324.3,0.226]
[1736506868447,0.0075,3324.6,3324.3,0.226]
[1736506868627,0.301534,3324.5,3324.3,0.226]
[1736506868831,0.301534,3324.5,3324.4,0.226]
[1736506869815,0.0075,3324.2,3323.2,0.7983]
[1736506870014,0.0075,3324.0,3323.3,0.226]
[1736506870248,4.38765,3323.8,3323.4,0.226]
[1736506870447,0.0075,3323.6,3323.4,0.226]
[1736506870765,0.0075,3323.6,3322.9,0.7983]
[1736506870946,3.01629,3323.6,3322.9,0.7983]
[1736506871116,3.01629,3323.6,3323.0,0.25632066]
[1736506871762,0.0075,3323.6,3323.0,0.25632066]
[1736506871931,0.7901385,3323.6,3323.0,0.25632066]
[1736506872334,0.7901385,3323.6,3323.0,0.03032066]
[1736506872539,0.7901385,3323.6,3323.1,0.226]
[1736506873064,0.7901385,3323.6,3323.2,0.25655444]
[1736506874135,3.0,3323.9,3323.2,0.25655444]
[1736506874326,0.8125,3324.1,3323.2,0.25655444]
[1736506874526,0.8125,3324.4,3323.5,0.7528]
[1736506874968,0.0075,3324.3,3323.6,0.03046466]
[1736506875265,3.0,3324.2,3323.6,0.03046466]
[1736506875465,0.601569,3324.1,3323.6,0.03046466]
[1736506876025,0.015,3324.2,3323.7,0.226]
[1736506876274,3.0161,3323.8,3323.7,0.226]
[1736506877376,3.8286,3323.8,3323.7,0.226]
[1736506877881,0.0075,3323.7,3322.9,1.36850362]
[1736506878095,3.00888,3323.5,3323.0,0.226]
[1736506878260,3.310518,3323.5,3323.0,0.2675727]
[1736506878757,0.0075,3323.2,3323.0,0.0415727]
[1736506879086,6.57423,3323.1,3323.0,0.2675727]
[1736506879269,6.57423,3323.1,3323.0,0.226]
[1736506879478,7.312903,3323.1,3323.0,0.226]
[1736506879675,7.312903,3323.1,3322.6,0.226]
[1736506879676,6.5746,3322.7,3322.6,0.226]
[1736506880598,3.01018,3322.1,3321.6,4.217]
[1736506880798,3.0075,3322.0,3321.7,0.226]
[1736506881089,3.609268,3322.0,3321.7,0.04519483]
[1736506881242,3.609268,3322.0,3321.8,0.226]
[1736506881439,3.619528,3322.0,3321.8,0.27114015]
[1736506881643,3.56782,3321.9,3321.8,0.226]
[1736506881870,6.56782,3321.9,3321.8,0.226]
[1736506882497,3.58790886,3321.9,3321.8,0.226]
[1736506882657,3.0075,3321.9,3321.8,0.226]
[1736506885674,3.0,3321.9,3321.8,0.226]
[1736506886118,3.0075,3321.9,3321.8,0.226]
[1736506887108,0.0075,3321.9,3321.8,0.226]
[1736506887418,3.00899,3323.4,3321.9,0.7983]
[1736506887419,0.8323,3322.9,3321.9,0.7983]
[1736506887623,3.8418,3322.9,3321.9,0.7983]
[1736506887817,3.0096,3322.7,3322.0,0.04052772]
[1736506888020,3.0,3322.6,3322.0,0.04052772]
[1736506888220,0.0075,3322.2,3322.0,0.04052772]
[1736506888432,0.0075,3322.2,3321.8,0.226]
[1736506888594,0.0075,3322.2,3322.1,0.04047852]
[1736506888794,0.0075,3322.2,3321.9,0.223]
[1736506889112,0.0075,3322.2,3322.0,0.04052772]
[1736506889420,0.0075,3322.4,3322.1,0.7983]
[1736506889622,0.0075,3322.4,3322.2,0.04042932]
[1736506889806,0.0075,3322.8,3322.2,0.04042932]
[1736506890011,3.0075,3322.5,3321.9,0.223]
[1736506890234,0.0075,3322.5,3322.0,0.04052772]
[1736506890521,0.0075,3322.6,3322.0,0.04052772]
[1736506890927,0.8186,3323.2,3322.1,0.7983]
[1736506891092,3.00934,3323.0,3322.1,0.7983]
[1736506891297,0.0075,3322.9,3322.2,0.04042932]
[1736506891883,0.0075,3322.7,3322.2,0.04042932]
[1736506892336,3.01713,3322.7,3322.2,0.04042932]
[1736506894201,0.0075,3322.3,3322.2,0.26342932]
[1736506894402,0.0075,3322.3,3322.2,0.223]
[1736506894603,0.0075,3322.6,3322.2,0.25776012]
[1736506894803,0.30075,3322.5,3322.2,0.25776012]
[1736506895207,3.0,3322.7,3322.2,0.25776012]
[1736506895411,1.112584,3322.9,3322.2,0.223]
[1736506895622,0.0075,3322.8,3322.3,0.03471913]
[1736506895832,0.0075,3322.8,3322.2,0.223]
[1736506896041,0.0075,3322.8,3322.3,0.03475457]
[1736506896207,0.0075,3322.8,3322.3,0.04443041]
[1736506896208,0.3393524,3322.8,3322.3,0.04443041]
[1736506896404,0.3393524,3322.8,3322.2,0.223]
[1736506896709,3.0075,3322.7,3322.2,0.223]
[1736506897895,0.0075,3322.8,3322.2,0.223]
[1736506898090,3.01737,3322.4,3321.8,0.7983]
[1736506898297,3.00999,3322.3,3321.9,0.223]
[1736506898539,3.311739,3322.3,3321.9,0.223]
[1736506899795,0.0075,3322.2,3321.9,0.223]
[1736506900006,3.01762,3322.2,3321.5,0.7982]
[1736506900202,0.0075,3322.2,3322.0,0.223]
[1736506900428,0.0075,3322.0,3321.5,0.7982]
[1736506900634,0.0075,3322.0,3321.7,0.223]
[1736506901137,0.0075,3322.1,3321.7,0.223]
[1736506901312,3.01771,3322.1,3321.7,0.223]
[1736506901639,3.018,3321.7,3321.2,0.7982]
[1736506901945,3.018,3321.7,3321.6,4.44]
[1736506902326,3.018,3321.7,3321.6,4.217]
[1736506902519,3.018,3321.7,3321.6,4.44]
[1736506902895,0.0075,3321.7,3321.6,4.44]
[1736506903516,3.00978,3322.5,3321.6,4.44]
[1736506903680,0.7671,3322.6,3321.7,0.7983]
[1736506903845,3.00955,3322.8,3321.8,3.01034]
[1736506904170,2.20926003,3323.3,3322.0,3.01021]
[1736506904171,3.00934,3323.0,3322.0,3.01021]
[1736506904358,0.0075,3322.9,3322.1,0.7983]
[1736506904739,3.00958,3322.8,3322.1,0.7983]
[1736506904957,3.311288,3322.8,3322.1,0.7983]
[1736506905870,0.8156,3322.6,3321.7,0.7713]
[1736506906174,0.0075,3322.1,3321.6,4.217]
[1736506906354,3.01772,3322.1,3321.8,0.223]
[1736506906961,3.0075,3322.2,3321.8,0.223]
[1736506907268,3.610749,3322.2,3321.8,0.223]
[1736506907473,3.620819,3322.2,3321.8,0.223]
[1736506910387,0.0075,3322.0,3321.8,0.223]
[1736506910682,3.01775,3322.0,3321.8,0.223]
[1736506913841,3.82145,3322.0,3321.8,0.223]
[1736506914045,0.382145,3321.9,3321.8,0.223]
[1736506914768,0.131745,3321.9,3321.8,0.223]
[1736506915852,0.0075,3321.8,3321.6,4.217]
[1736506916056,0.0075,3321.8,3321.7,0.223]
[1736506917700,3.01791,3321.8,3321.7,0.223]
[1736506918598,6.4132455,3321.8,3321.7,0.223]
[1736506920719,3.613359,3322.2,3321.7,0.223]
[1736506920720,3.01009,3322.2,3321.7,0.223]
[1736506920927,0.7821,3322.6,3321.7,0.223]
[1736506921212,6.1521,3322.9,3321.7,0.223]
[1736506921414,3.00971,3322.6,3321.7,0.223]
[1736506921715,3.0,3322.5,3321.7,0.223]
[1736506921921,0.0075,3322.4,3321.7,0.223]
[1736506923333,0.0075,3322.5,3321.7,0.25310356]
[1736506923552,3.01729,3322.5,3321.6,5.0153]
[1736506923700,0.5575,3322.8,3321.8,0.222]
[1736506924032,0.0075,3322.2,3321.8,0.222]
[1736506924721,3.01728,3322.5,3321.8,0.222]
[1736506924925,0.0075,3322.5,3321.8,0.222]
[1736506925121,3.00945,3322.9,3321.9,0.7983]
[1736506925491,0.0075,3322.8,3321.9,2.23809522]
[1736506925695,0.0075,3322.8,3322.0,0.7843]
[1736506926739,3.01701,3322.8,3322.0,0.7843]
[1736506927116,0.565,3322.9,3322.0,0.7843]
[1736506927320,0.0075,3322.3,3321.8,0.222]
[1736506927641,3.01007,3322.2,3321.8,0.222]
[1736506927947,2.22299369,3322.5,3321.8,0.222]
[1736506928097,0.0075,3322.0,3321.8,0.222]
[1736506928297,0.0075,3322.0,3321.6,4.217]
[1736506928497,0.0075,3321.9,3321.6,4.217]
[1736506928703,3.0105,3321.7,3321.6,4.217]
[1736506928926,3.0105,3321.7,3321.6,4.439]
[1736506929304,6.0105,3321.7,3321.6,4.439]
[1736506930260,0.0075,3321.4,3320.5,3.01158]
[1736506930427,0.0075,3321.4,3320.6,1.0203]
[1736506930951,0.0075,3321.6,3320.7,3.0114]
[1736506931139,0.0075,3321.6,3320.8,0.7664]
[1736506931338,0.0075,3321.6,3320.8,3.77763]
[1736506933645,0.0075,3321.6,3320.8,0.7664]
[1736506934064,3.0075,3321.8,3320.8,3.77772]
[1736506934670,3.01792,3321.8,3320.8,3.77772]
[1736506934981,3.00981,3322.5,3321.4,0.7983]
[1736506935156,3.00998,3322.3,3321.5,0.222]
[1736506935326,0.0075,3321.9,3321.5,0.222]
[1736506935670,0.0075,3321.9,3321.6,0.222]
[1736506936427,0.0075,3322.2,3321.4,0.7983]
[1736506936718,0.0075,3321.9,3321.5,0.222]
[1736506936919,0.0075,3321.9,3321.6,0.222]
[1736506938051,3.01794,3321.8,3321.6,0.222]
[1736506939136,0.0075,3321.8,3321.6,0.222]
[1736506939342,3.01009,3322.2,3321.6,0.222]
[1736506939739,0.0075,3322.1,3321.7,0.7983]
[1736506940478,0.0075,3322.6,3321.7,0.82840437]
[1736506940630,3.0,3322.4,3321.7,0.7983]
[1736506940829,0.0075,3322.3,3321.7,0.7983]
[1736506941282,0.0075,3322.1,3321.8,0.222]
[1736506941477,0.0075,3322.1,3321.9,0.222]
[1736506942292,0.0075,3322.2,3321.9,0.222]
[1736506942498,3.01016,3322.1,3321.9,0.222]
[1736506943303,3.0075,3322.2,3321.9,0.222]
[1736506944015,6.01757,3322.2,3321.9,0.222]
[1736506944208,6.76156,3322.2,3321.9,0.222]
[1736506945939,0.75149,3322.2,3321.9,0.222]
[1736506946103,3.0075,3322.2,3321.9,0.222]
[1736506946303,3.01755,3322.2,3321.9,0.222]
[1736506948027,3.01014,3322.1,3321.9,0.222]
[1736506948229,6.01764,3322.1,3322.0,0.222]
[1736506948433,6.02514,3322.1,3322.0,0.222]
[1736506948678,6.93051337,3322.1,3322.0,0.222]
[1736506949009,0.0075,3321.7,3321.1,0.7824]
[1736506949212,3.01801,3321.7,3321.2,0.222]
[1736506949406,0.0075,3321.7,3321.1,0.7824]
[1736506949611,0.0075,3321.7,3321.2,0.222]
[1736506949612,0.0075,3321.4,3321.2,0.222]
[1736506949839,0.0075,3321.4,3321.3,0.222]
[1736506952326,3.01052,3321.7,3321.3,0.222]
[1736506952660,0.0075,3321.6,3321.3,0.222]
[1736506953029,3.01041,3321.8,3321.4,0.222]
[1736506953334,0.364291,3321.7,3321.5,0.222]
[1736506953549,0.0075,3321.7,3321.5,0.222]
[1736506954134,6.01809,3321.6,3321.5,0.222]
[1736506956738,3.0075,3321.6,3321.5,0.222]
[1736506959209,6.01809,3321.6,3321.5,0.222]
[1736506967318,0.0075,3321.2,3320.4,0.7891]
[1736506967606,0.0075,3321.2,3320.5,0.222]
[1736506968710,0.0075,3321.2,3320.4,0.7891]
[1736506968913,0.0075,3321.2,3320.6,0.222]
[1736506970603,0.0075,3321.0,3320.7,0.222]
[1736506971502,0.0075,3320.9,3320.7,0.222]
[1736506972089,3.01849,3321.2,3320.7,0.222]
[1736506973101,0.0075,3321.2,3320.7,0.222]
[1736506973305,11.5586,3322.2,3320.7,0.222]
[1736506973306,3.81874,3322.1,3320.8,0.7983]
[1736506973493,0.8086,3322.1,3321.2,0.7983]
[1736506974133,0.0075,3322.0,3321.2,3.80922]
[1736506974456,0.78183346,3323.0,3321.9,3.01027]
[1736506974727,0.7764,3323.1,3322.1,3.77505]
[1736506975041,3.00906,3323.3,3322.2,3.01003]
[1736506975326,3.01681,3323.1,3322.1,0.765]
[1736506975652,3.00933,3323.0,3322.1,0.765]
[1736506975861,0.0075,3323.1,3322.1,0.765]
[1736506976064,0.0075,3322.8,3322.1,0.765]
[1736506976197,0.0075,3322.8,3322.0,0.222]
[1736506976528,3.00959,3322.8,3322.0,0.222]
[1736506977822,3.8037,3322.9,3322.0,0.222]
[1736506978032,6.81312,3322.9,3322.0,0.222]
[1736506978323,3.81312,3322.9,3322.0,0.222]
[1736506978872,3.00962,3322.7,3322.0,0.222]
[1736506979073,0.0075,3322.6,3322.0,0.222]
[1736506979379,3.01719,3322.6,3322.0,0.222]
[1736506980077,3.00978,3322.5,3322.0,0.222]
[1736506980381,3.00978,3322.5,3322.1,0.218]
[1736506980685,0.0075,3322.2,3322.1,0.218]
[1736506980841,0.0075,3322.2,3321.8,0.7938]
[1736506981041,0.0075,3322.2,3321.9,0.218]
[1736506981796,3.01749,3322.3,3321.9,0.218]
[1736506982683,0.0075,3322.3,3321.9,0.218]
[1736506983987,3.80114,3322.9,3322.0,0.769]
[1736506984202,5.37,3323.0,3322.0,0.769]
[1736506984381,6.2024,3324.0,3322.4,0.7689]
[1736506984698,5.37,3324.2,3322.8,3.00948]
[1736506984867,3.00842,3324.0,3323.0,3.00931]
[1736506985064,3.00842,3324.0,3322.9,0.24809291]
[1736506985065,0.0075,3323.9,3322.9,0.24809291]
[1736506985286,0.0075,3323.9,3322.9,3.25750291]
[1736506985464,3.01602,3323.9,3322.9,3.25750291]
[1736506986059,3.0,3324.4,3323.2,0.759]
[1736506986370,3.0085,3324.0,3323.3,0.218]
[1736506986887,0.0075,3323.9,3323.3,0.218]
[1736506989166,3.00852,3323.9,3323.3,0.218]
[1736506989361,0.0075,3323.8,3323.3,0.218]
[1736506990366,0.015,3323.8,3323.3,0.218]
[1736506990575,3.00887,3323.6,3323.3,0.218]
[1736506990774,0.0075,3323.4,3323.3,0.218]
[1736506994459,0.0075,3323.1,3322.5,0.7983]
[1736506994757,6.01681,3323.1,3322.6,0.218]
[1736506994905,6.697721,3323.1,3322.6,0.218]
[1736506998077,6.697721,3323.1,3322.5,0.7983]
[1736506998259,6.697721,3323.1,3322.7,0.218]
[1736506998773,0.0075,3322.9,3322.7,0.218]
[1736506999077,0.0075,3322.9,3322.8,0.218]
[1736506999282,3.01691,3322.9,3322.8,0.218]
[1736507003443,6.318601,3322.9,3322.8,0.218]
[1736507003644,0.0075,3322.7,3322.3,5.0098]
[1736507003863,3.01712,3322.7,3322.4,0.218]
[1736507004339,3.00943,3322.9,3322.4,0.218]
[1736507004545,0.7528,3323.6,3322.4,0.24809812]
[1736507004929,0.0075,3323.5,3322.5,0.7507]
[1736507005158,0.0075,3323.5,3322.5,3.76047]
[1736507005579,0.0075,3323.3,3322.5,3.76047]
[1736507005787,3.0,3323.2,3322.5,0.7507]
[1736507006710,5.37,3323.7,3322.5,0.78079393]
[1736507006711,3.0075,3323.6,3322.5,0.78079393]
[1736507006908,0.0075,3323.6,3322.5,5.24782762]
[1736507007054,0.0075,3323.3,3322.6,0.7961]
[1736507007256,0.0075,3323.2,3322.6,0.7961]
[1736507008919,0.0075,3323.1,3322.6,0.7961]
[1736507010364,0.0075,3323.0,3322.6,0.7961]
[1736507011579,0.0075,3323.1,3322.6,0.7961]
[1736507020407,0.0075,3323.1,3322.7,0.217]
[1736507020575,3.01675,3323.1,3322.7,0.217]
[1736507024837,3.00891,3323.5,3322.7,0.217]
[1736507024997,0.0075,3323.4,3322.7,0.217]
[1736507028328,0.0075,3323.4,3322.8,0.7534]
[1736507028999,0.59518461,3324.2,3323.1,2.20799369]
[1736507029160,3.00798,3324.5,3323.6,0.7534]
[1736507029466,3.0,3324.4,3323.7,0.217]
[1736507030122,3.389168,3324.5,3323.7,0.217]
[1736507030461,0.8039,3324.7,3323.7,0.217]
[1736507030640,3.01546,3324.6,3323.7,0.217]
[1736507030846,0.0075,3324.4,3323.7,0.217]
[1736507039401,3.00769,3324.9,3323.8,3.83693423]
[1736507039713,3.8183,3325.0,3324.1,0.7983]
[1736507039914,7.508409,3325.0,3324.1,0.82837969]
[1736507040235,0.0075,3324.9,3324.1,0.82837969]
[1736507041103,0.0075,3324.9,3324.1,0.7983]
[1736507041418,0.8183,3325.0,3324.1,0.7983]
[1736507041419,6.00779,3324.7,3324.1,0.7983]
[1736507042013,3.01514,3324.9,3324.1,0.7983]
[1736507042339,0.0075,3324.7,3324.1,0.7983]
[1736507043410,3.00788,3324.6,3324.1,0.7983]
[1736507044220,0.0075,3324.8,3324.1,0.7983]
[1736507044520,3.01519,3324.8,3324.1,0.7983]
[1736507044895,0.0075,3324.8,3324.1,0.7983]
[1736507045091,3.00779,3324.7,3324.1,0.7983]
[1736507045509,3.00789,3324.6,3324.1,0.7983]
[1736507046210,0.0075,3324.8,3324.1,0.7983]
[1736507046543,3.00799,3324.5,3324.1,0.7983]
[1736507047101,0.0075,3324.6,3323.8,0.7983]
[1736507047294,3.00817,3324.3,3323.9,0.215]
[1736507049329,3.00824,3324.2,3323.9,0.215]
[1736507051342,0.7665,3324.4,3323.8,0.7983]
[1736507051625,0.38415,3324.3,3324.0,0.215]
[1736507051805,3.0084,3324.1,3324.0,0.215]
[1736507052222,3.38415,3324.3,3323.5,0.7983]
[1736507052417,5.59214369,3324.3,3323.6,0.215]
[1736507052720,3.0161,3323.8,3323.7,0.215]
[1736507053033,3.31771,3323.8,3323.7,0.215]
[1736507053253,3.00843,3324.0,3323.7,0.215]
[1736507054235,3.00806,3324.4,3323.8,0.7983]
[1736507055407,3.0079,3324.6,3323.9,0.03008419]
[1736507055606,0.7915,3324.9,3324.0,0.7536]
[1736507055607,3.00769,3324.9,3324.0,0.7536]
[1736507055940,3.00771,3324.8,3324.1,0.03008029]
[1736507056434,1.4488,3325.7,3324.4,0.7983]
[1736507056657,3.00721,3325.4,3324.5,0.0300751]
[1736507056865,3.00721,3325.4,3324.3,5.21613369]
[1736507056866,3.00721,3325.4,3324.6,1.0133]
[1736507057402,3.00725,3325.3,3324.6,1.0133]
[1736507058716,3.00698,3325.6,3324.8,0.7983]
[1736507058921,3.00698,3325.6,3324.6,0.215]
[1736507058922,0.625,3325.7,3325.0,0.7983]
[1736507059282,0.625,3325.7,3325.2,0.7983]
[1736507061374,0.1711064,3325.8,3325.7,0.875]
[1736507061578,0.1711064,3325.8,3325.7,1.8883]
[1736507061879,0.1711064,3325.8,3325.7,0.875]
[1736507061880,3.1778964,3325.8,3325.7,0.875]
[1736507062734,3.1778964,3325.8,3324.5,5.20799369]
[1736507062735,3.0075,3325.1,3324.5,0.7983]
[1736507062959,3.0075,3325.1,3324.6,0.215]
[1736507063136,3.00726,3325.3,3324.6,0.215]
[1736507063313,3.00707,3325.5,3324.8,0.7983]
[1736507064264,3.00717,3325.4,3324.8,0.7983]
[1736507065679,3.00688,3325.7,3324.8,0.7983]
[1736507065965,0.1711064,3325.8,3325.1,0.0075]
[1736507066133,3.1779064,3325.8,3325.1,0.03757062]
[1736507066476,3.00692,3325.7,3325.0,0.7983]
[1736507066952,3.00701,3325.6,3325.0,0.7983]
[1736507070219,3.00701,3325.6,3325.1,0.0075]
[1736507071441,3.00701,3325.6,3325.0,0.7983]
[1736507074087,3.00701,3325.6,3325.1,0.0075]
[1736507077991,3.38732164,3325.6,3325.1,0.0075]
[1736507079369,3.00706,3325.5,3325.3,0.0075]
[1736507080274,3.00739,3325.2,3324.1,3.80036]
[1736507080439,3.00739,3325.2,3324.3,0.0075]
[1736507080636,3.00739,3325.2,3324.5,0.7921]
[1736507086186,0.7793,3325.5,3324.5,0.7921]
[1736507086187,3.00726,3325.3,3324.5,0.7921]
[1736507087654,3.00735,3325.2,3324.5,0.7921]
[1736507087952,0.8231,3325.3,3324.6,0.215]
[1736507088171,3.00769,3324.9,3323.9,0.7847]
[1736507088486,3.00776,3324.8,3324.0,0.215]
[1736507089065,3.00776,3324.8,3324.1,0.015]
[1736507089990,3.00753,3325.0,3324.1,0.015]
[1736507090967,3.00753,3325.0,3324.2,0.769]
[1736507092255,0.8231,3325.3,3324.3,0.04508029]
[1736507092388,0.8231,3325.3,3324.5,0.015]
[1736507092389,0.38231,3325.3,3324.5,0.015]
[1736507092593,3.00707,3325.5,3324.8,0.015]
[1736507092827,3.00707,3325.5,3325.0,0.0075]
[1736507093844,3.00722,3325.4,3325.0,0.0075]
[1736507093997,0.38031164,3325.6,3325.0,0.0075]
[1736507094195,3.00742,3325.1,3325.0,0.0075]
[1736507096769,0.78290616,3325.5,3325.0,0.0075]
[1736507096953,3.00736,3325.2,3325.0,0.0075]
[1736507097973,3.00742,3325.1,3325.0,0.0075]
[1736507099133,0.78290616,3325.5,3325.0,0.0075]